bitfinex/quotes_SOLUSD_20241103
["timestamp","ask_amount","ask_price","bid_price","bid_amount"]
[1730628721286,8.07302377,163.26,163.2,8.07302377]
[1730628721474,8.07302377,163.26,163.21,1.9993943]
[1730628721673,8.07302377,163.26,163.22,1.9993943]
[1730628721875,8.07302377,163.26,163.23,1.9993943]
[1730628722090,8.07302377,163.26,163.24,1.9993943]
[1730628722288,8.07302377,163.26,163.2,8.07302377]
[1730628722587,8.07302377,163.26,163.21,1.9991915]
[1730628722764,8.07302377,163.26,163.22,1.9991915]
[1730628722964,8.07302377,163.26,163.23,1.9991915]
[1730628723191,8.07302377,163.26,163.24,1.9991915]
[1730628723498,8.07302377,163.26,163.2,8.07302377]
[1730628723678,8.07302377,163.26,163.21,1.99910153]
[1730628723872,8.07302377,163.27,163.22,1.99910153]
[1730628724071,8.07302377,163.27,163.23,1.99910153]
[1730628724281,8.07302377,163.27,163.24,1.99910153]
[1730628724492,8.07302377,163.27,163.25,1.99910153]
[1730628724696,8.07302377,163.27,163.22,8.07302377]
[1730628724892,8.07302377,163.27,163.23,1.9989317]
[1730628725208,8.07302377,163.3,163.24,33.84883947]
[1730628725387,8.07302377,163.3,163.25,1.9989317]
[1730628725572,8.07302377,163.29,163.26,1.9989317]
[1730628725776,8.07302377,163.29,163.27,1.9989317]
[1730628725978,8.07302377,163.3,163.25,1.9989317]
[1730628726178,8.07302377,163.3,163.26,1.9989317]
[1730628726377,8.07302377,163.3,163.27,1.9989317]
[1730628726577,8.07302377,163.3,163.25,1.9989317]
[1730628726778,8.07302377,163.3,163.26,1.9989317]
[1730628726977,8.07302377,163.3,163.27,1.9989317]
[1730628727202,8.07302377,163.3,163.25,1.9989317]
[1730628727393,8.07302377,163.3,163.26,1.9989317]
[1730628727702,8.07302377,163.3,163.27,1.9989317]
[1730628727886,8.07302377,163.3,163.25,1.9989317]
[1730628728088,8.07302377,163.3,163.26,1.9989317]
[1730628728290,8.07302377,163.3,163.27,1.9989317]
[1730628728597,8.07302377,163.3,163.25,1.9989317]
[1730628728798,8.07302377,163.3,163.26,1.99891393]
[1730628729094,8.07302377,163.3,163.27,1.99891393]
[1730628729304,8.07302377,163.3,163.25,1.99891393]
[1730628729482,8.07302377,163.3,163.26,1.99891393]
[1730628729801,8.07302377,163.3,163.27,1.99891393]
[1730628729978,8.07302377,163.3,163.24,31.84990777]
[1730628730298,8.07302377,163.3,163.25,1.99893685]
[1730628730499,8.07302377,163.3,163.26,1.99893685]
[1730628730799,8.07302377,163.3,163.27,1.99893685]
[1730628731105,8.07302377,163.3,163.25,1.99893685]
[1730628731290,8.07302377,163.29,163.26,1.99893685]
[1730628731605,8.07302377,163.29,163.27,1.99893685]
[1730628731777,8.07302377,163.29,163.24,31.84990777]
[1730628732098,8.07302377,163.3,163.25,10.07192014]
[1730628732286,8.07302377,163.32,163.26,10.07192014]
[1730628732488,8.07302377,163.32,163.27,1.99889637]
[1730628732784,8.07302377,163.32,163.26,8.07302377]
[1730628732991,8.07302377,163.32,163.27,1.99902925]
[1730628733308,8.07302377,163.32,163.28,1.99902925]
[1730628733604,8.07302377,163.3,163.27,1.99892761]
[1730628733896,8.07302377,163.3,163.28,1.99892761]
[1730628734103,8.07302377,163.3,163.25,1.99892761]
[1730628734289,8.07302377,163.3,163.26,1.99892761]
[1730628734604,8.07302377,163.3,163.27,1.99892761]
[1730628734785,8.07302377,163.3,163.28,1.99892761]
[1730628734989,8.07302377,163.3,163.25,1.99892761]
[1730628735189,8.07302377,163.29,163.26,1.99892761]
[1730628735398,8.07302377,163.29,163.27,1.99892761]
[1730628735689,8.07302377,163.29,163.24,31.84990777]
[1730628735690,8.07302377,163.29,163.28,1.99892761]
[1730628735890,8.07302377,163.29,163.25,1.99892761]
[1730628736089,8.07302377,163.29,163.26,1.99892761]
[1730628736298,8.07302377,163.29,163.27,1.99878776]
[1730628736685,8.07302377,163.29,163.28,1.99878776]
[1730628736898,8.07302377,163.29,163.25,1.99878776]
[1730628737092,8.07302377,163.29,163.26,1.99878776]
[1730628737291,8.07302377,163.29,163.27,1.99878776]
[1730628737594,8.07302377,163.29,163.28,1.99878776]
[1730628737794,8.07302377,163.29,163.25,1.99878776]
[1730628738098,8.07302377,163.29,163.26,1.99878776]
[1730628738303,8.07302377,163.29,163.27,1.99878776]
[1730628738601,8.07302377,163.29,163.28,1.99878776]
[1730628738905,8.07302377,163.29,163.25,1.99878776]
[1730628739106,8.07302377,163.29,163.26,1.99878776]
[1730628739409,8.07302377,163.29,163.27,1.99878776]
[1730628739584,8.07302377,163.29,163.24,31.84990777]
[1730628739585,8.07302377,163.29,163.25,1.99878776]
[1730628739786,8.07302377,163.28,163.26,1.99878776]
[1730628739998,8.07302377,163.28,163.27,1.99878776]
[1730628740289,8.07302377,163.28,163.25,1.99852404]
[1730628740481,8.07302377,163.28,163.26,1.99852404]
[1730628740677,8.07302377,163.28,163.27,1.99852404]
[1730628740984,8.07302377,163.29,163.27,1.99852404]
[1730628741185,8.07302377,163.29,163.25,1.99852404]
[1730628741505,8.07302377,163.31,163.26,1.49852404]
[1730628741710,8.07302377,163.31,163.25,8.07302377]
[1730628742006,8.07302377,163.31,163.26,8.07302377]
[1730628745114,8.07302377,163.31,163.26,23.776884]
[1730628747724,8.07302377,163.31,163.26,31.84990777]
[1730628748209,8.07302377,163.31,163.26,23.776884]
[1730628750208,8.07302377,163.31,163.26,31.84990777]
[1730628751507,8.07302377,163.32,163.26,31.84990777]
[1730628751991,8.07302377,163.33,163.28,8.07302377]
[1730628753126,8.07302377,163.33,163.27,31.84990777]
[1730628753308,8.07302377,163.33,163.28,1.9977141]
[1730628755014,8.07302377,163.32,163.28,1.9977141]
[1730628755399,8.07302377,163.31,163.28,1.9977141]
[1730628756315,8.07302377,163.32,163.28,1.9977141]
[1730628756612,8.07302377,163.33,163.28,1.9977141]
[1730628756909,8.07302377,163.33,163.29,1.9977141]
[1730628757128,8.07302377,163.33,163.28,1.9977141]
[1730628757797,8.07302377,163.33,163.29,1.9977141]
[1730628757995,8.07302377,163.33,163.28,1.9977141]
[1730628758217,8.07302377,163.33,163.29,1.9977141]
[1730628758414,8.07302377,163.33,163.28,10.07073787]
[1730628759224,8.07302377,163.33,163.29,1.9977141]
[1730628759517,8.07302377,163.34,163.29,1.9977141]
[1730628760101,8.07302377,163.34,163.28,10.07073787]
[1730628760413,8.07302377,163.34,163.29,1.9977141]
[1730628761708,8.07302377,163.33,163.29,1.9977141]
[1730628764210,8.07302377,163.33,163.28,8.07302377]
[1730628764410,8.07302377,163.33,163.29,1.99835083]
[1730628764615,8.07302377,163.33,163.28,8.07302377]
[1730628764806,8.07302377,163.33,163.29,1.99835083]
[1730628765108,8.07302377,163.33,163.28,8.07302377]
[1730628765314,8.07302377,163.33,163.29,1.99870772]
[1730628765626,8.07302377,163.33,163.28,8.07302377]
[1730628765823,8.07302377,163.33,163.29,1.99871869]
[1730628766024,8.07302377,163.33,163.28,8.07302377]
[1730628766226,8.07302377,163.33,163.29,1.99871869]
[1730628766426,8.07302377,163.33,163.28,8.07302377]
[1730628766604,8.07302377,163.33,163.29,1.99869941]
[1730628766804,8.07302377,163.33,163.28,8.07302377]
[1730628767013,8.07302377,163.33,163.29,1.99869941]
[1730628767208,8.07302377,163.33,163.28,8.07302377]
[1730628767427,8.07302377,163.33,163.29,1.99868327]
[1730628767619,8.07302377,163.33,163.3,1.99916836]
[1730628767919,6.1219,163.35,163.28,8.07302377]
[1730628767920,8.07302377,163.34,163.28,8.07302377]
[1730628768131,8.07302377,163.33,163.29,1.99911679]
[1730628768300,8.07302377,163.33,163.3,1.99911679]
[1730628768499,8.07302377,163.33,163.28,8.07302377]
[1730628768730,8.07302377,163.32,163.29,1.99946856]
[1730628768898,8.07302377,163.32,163.3,1.99946856]
[1730628769099,8.07302377,163.31,163.25,8.32400377]
[1730628769304,8.07302377,163.3,163.26,1.99950387]
[1730628769625,8.07302377,163.3,163.27,1.99950387]
[1730628769825,8.07302377,163.3,163.26,23.776884]
[1730628770119,8.07302377,163.31,163.27,2.00001509]
[1730628770321,8.07302377,163.31,163.28,2.00001509]
[1730628770629,8.07302377,163.34,163.29,2.00001509]
[1730628770832,8.07302377,163.34,163.3,2.00001509]
[1730628771009,8.07302377,163.33,163.31,2.00001509]
[1730628771213,8.07302377,163.33,163.28,8.07302377]
[1730628771524,8.07302377,163.33,163.29,2.00060127]
[1730628771717,8.07302377,163.33,163.3,2.00060127]
[1730628771909,8.07302377,163.33,163.31,2.00060127]
[1730628772111,8.07302377,163.33,163.28,8.07302377]
[1730628772312,8.07302377,163.33,163.29,2.00059121]
[1730628772635,8.07302377,163.33,163.3,2.00059121]
[1730628772830,8.07302377,163.32,163.31,2.00059121]
[1730628774415,8.07302377,163.33,163.31,2.00059121]
[1730628774733,8.07302377,163.33,163.28,23.776884]
[1730628775034,8.07302377,163.33,163.29,2.00049653]
[1730628775334,8.07302377,163.33,163.3,2.00049653]
[1730628775540,8.07302377,163.33,163.31,2.00049653]
[1730628775831,8.07302377,163.33,163.28,31.84990777]
[1730628776036,8.07302377,163.33,163.29,2.00054214]
[1730628776214,8.07302377,163.39,163.32,8.07302377]
[1730628776416,8.07302377,163.4,163.34,8.07302377]
[1730628776632,8.07302377,163.4,163.35,2.00072371]
[1730628776835,0.2992716,163.44,163.38,8.07302377]
[1730628777309,8.37229537,163.44,163.38,8.07302377]
[1730628777708,8.37229537,163.44,163.38,10.07083214]
[1730628777931,8.07302377,163.43,163.38,8.07302377]
[1730628778119,8.07302377,163.43,163.38,10.07083214]
[1730628778329,8.07302377,163.43,163.38,38.07302377]
[1730628778529,8.07302377,163.42,163.38,30.0]
[1730628778738,8.07302377,163.41,163.35,31.84990777]
[1730628778924,8.07302377,163.41,163.36,1.99584069]
[1730628779126,8.07302377,163.43,163.37,8.07302377]
[1730628780614,8.37229537,163.44,163.39,8.07302377]
[1730628780837,8.37229537,163.44,163.38,8.07302377]
[1730628787037,8.37229537,163.44,163.39,8.07302377]
[1730628787531,0.2992716,163.44,163.4,8.07302377]
[1730628787743,0.2992716,163.44,163.41,8.07302377]
[1730628788119,0.2992716,163.44,163.4,8.07302377]
[1730628790243,0.2992716,163.44,163.41,8.07302377]
[1730628790940,0.2992716,163.44,163.4,8.07302377]
[1730628792720,0.2992716,163.44,163.41,8.07302377]
[1730628796738,0.2992716,163.44,163.37,0.12549]
[1730628796739,8.37229537,163.44,163.39,8.07302377]
[1730628796926,0.2992716,163.44,163.39,8.07302377]
[1730628797126,0.2992716,163.44,163.4,8.07302377]
[1730628797446,0.2992716,163.44,163.41,8.07302377]
[1730628797635,0.2992716,163.44,163.42,8.07302377]
[1730628799446,0.2992716,163.44,163.43,8.07302377]
[1730628801140,0.2992716,163.44,163.42,8.07302377]
[1730628802553,0.2992716,163.44,163.43,31.84990777]
[1730628805647,0.2992716,163.44,163.43,52.10088777]
[1730628805950,0.2992716,163.44,163.43,52.22637777]
[1730628820345,0.2992716,163.44,163.43,54.21432878]
[1730628823152,0.2992716,163.44,163.43,52.22637777]
[1730628823353,0.2992716,163.44,163.43,54.21625804]
[1730628823558,0.2992716,163.44,163.43,54.21612448]
[1730628824864,0.2992716,163.44,163.43,86.50821956]
[1730628825063,0.2992716,163.52,163.44,59.563254]
[1730628825264,0.2992716,163.52,163.51,8.07302377]
[1730628826462,0.2992716,163.52,163.51,32.10088777]
[1730628827169,0.2992716,163.52,163.51,32.22637777]
[1730628827968,0.2992716,163.52,163.51,64.51847285]
[1730628831874,0.2992716,163.52,163.51,84.51847285]
[1730628834754,0.2992716,163.6,163.55,0.37647]
[1730628835083,0.2992716,163.6,163.59,8.19851377]
[1730628835384,0.2992716,163.6,163.59,8.32400377]
[1730628836753,0.2992716,163.6,163.59,32.22637777]
[1730628838861,0.2992716,163.6,163.59,8.07302377]
[1730628840876,0.2992716,163.6,163.59,32.10088777]
[1730628848186,0.2992716,163.6,163.59,32.22637777]
[1730628848486,0.2992716,163.6,163.59,84.51847285]
[1730628848680,0.2992716,163.6,163.59,52.22637777]
[1730628850086,0.2992716,163.6,163.59,84.51847285]
[1730628852086,0.2992716,163.68,163.6,20.25098]
[1730628852385,0.2992716,163.68,163.67,8.07302377]
[1730628853170,0.2992716,163.68,163.66,8.07302377]
[1730628853798,0.2992716,163.68,163.65,8.07302377]
[1730628856696,0.2992716,163.68,163.66,8.07302377]
[1730628856869,0.2992716,163.68,163.67,8.07302377]
[1730628863181,0.2992716,163.68,163.66,8.07302377]
[1730628864399,0.2992716,163.68,163.67,8.07302377]
[1730628865092,0.2992716,163.68,163.66,8.07302377]
[1730628867594,0.2992716,163.68,163.65,8.07302377]
[1730628867891,0.2992716,163.68,163.64,8.07302377]
[1730628868099,0.2992716,163.68,163.65,8.07302377]
[1730628869782,0.2992716,163.68,163.66,8.07302377]
[1730628870390,0.2992716,163.68,163.61,0.12549]
[1730628870391,0.2992716,163.68,163.67,8.07302377]
[1730628871812,0.2992716,163.68,163.66,8.07302377]
[1730628872587,0.2992716,163.68,163.65,8.07302377]
[1730628872893,0.2992716,163.68,163.66,8.07302377]
[1730628873609,0.2992716,163.68,163.65,8.07302377]
[1730628874508,0.2992716,163.68,163.66,8.07302377]
[1730628875707,0.2992716,163.68,163.67,8.07302377]
[1730628877608,0.2992716,163.68,163.67,32.10088777]
[1730628879613,0.2992716,163.68,163.67,34.06589734]
[1730628879820,0.2992716,163.68,163.67,32.10088777]
[1730628880904,0.2992716,163.68,163.67,34.06732726]
[1730628881089,0.2992716,163.68,163.67,32.10088777]
[1730628882110,0.2992716,163.68,163.67,31.97539777]
[1730628882300,0.2992716,163.68,163.67,8.07302377]
[1730628884106,0.2992716,163.68,163.67,32.22637777]
[1730628891833,0.2992716,163.68,163.67,31.97539777]
[1730628892129,0.2992716,163.68,163.66,8.07302377]
[1730628893127,0.2992716,163.68,163.67,8.07302377]
[1730628900633,8.37229537,163.68,163.64,6.38103789]
[1730628900931,0.2992716,163.68,163.63,8.07302377]
[1730628901322,0.2992716,163.68,163.64,8.07302377]
[1730628902841,0.2992716,163.68,163.65,8.07302377]
[1730628904747,0.2992716,163.68,163.63,8.07302377]
[1730628905444,0.2992716,163.68,163.64,8.07302377]
[1730628909432,0.2992716,163.68,163.63,8.07302377]
[1730628911950,8.37229537,163.68,163.62,24.027864]
[1730628912249,8.07302377,163.65,163.61,6.38241026]
[1730628913634,23.70642377,163.65,163.61,6.38241026]
[1730628913933,8.07302377,163.64,163.61,6.38241026]
[1730628914253,8.07302377,163.62,163.55,8.07302377]
[1730628914433,8.07302377,163.61,163.56,0.12549]
[1730628915331,8.07302377,163.61,163.56,24.027864]
[1730628915531,8.07302377,163.61,163.56,32.10088777]
[1730628915736,8.07302377,163.61,163.56,8.19851377]
[1730628916146,8.07302377,163.62,163.56,8.19851377]
[1730628916347,8.07302377,163.62,163.57,8.07302377]
[1730628916544,8.07302377,163.62,163.56,8.07302377]
[1730628917046,23.70642377,163.65,163.59,8.07302377]
[1730628922355,8.07302377,163.64,163.59,8.07302377]
[1730628924559,8.07302377,163.64,163.6,1.97697755]
[1730628924853,8.07302377,163.64,163.59,8.07302377]
[1730628925157,8.07302377,163.64,163.61,3.95408924]
[1730628925339,8.07302377,163.64,163.62,1.97702288]
[1730628925539,8.07302377,163.64,163.61,3.95408924]
[1730628925739,8.07302377,163.64,163.62,1.97702285]
[1730628926044,8.07302377,163.64,163.63,1.97702285]
[1730628926248,8.07302377,163.64,163.61,3.95408924]
[1730628926460,8.07302377,163.64,163.62,1.97643927]
[1730628926760,8.07302377,163.64,163.63,1.97643927]
[1730628929055,34.18392377,163.64,163.63,1.97643927]
[1730628929644,34.18392377,163.64,163.61,3.95408924]
[1730628929842,8.07302377,163.62,163.61,3.95408924]
[1730628930760,14.18472377,163.62,163.61,3.95408924]
[1730628931446,14.28472377,163.62,163.61,3.95408924]
[1730628931645,20.36252377,163.62,163.61,3.95408924]
[1730628933061,20.36252377,163.62,163.51,14.45803206]
[1730628933255,8.07302377,163.57,163.51,14.45803206]
[1730628939447,8.07302377,163.6,163.54,8.07302377]
[1730628940668,8.07302377,163.6,163.55,8.07302377]
[1730628941663,8.07302377,163.61,163.55,8.07302377]
[1730628941869,8.07302377,163.62,163.56,8.07302377]
[1730628943458,8.07302377,163.64,163.59,8.07302377]
[1730628943965,8.07302377,163.64,163.58,8.07302377]
[1730628944467,8.07302377,163.63,163.57,8.07302377]
[1730628945058,8.07302377,163.62,163.57,8.07302377]
[1730628945264,8.07302377,163.62,163.56,8.07302377]
[1730628945453,21.744,163.65,163.56,8.07302377]
[1730628945454,8.07302377,163.61,163.56,8.07302377]
[1730628946975,8.07302377,163.62,163.56,8.07302377]
[1730628948477,8.07302377,163.63,163.57,8.07302377]
[1730628951958,8.07302377,163.62,163.57,8.07302377]
[1730628952164,8.07302377,163.62,163.56,8.07302377]
[1730628952574,8.07302377,163.59,163.54,8.07302377]
[1730628952877,8.07302377,163.58,163.53,14.45752712]
[1730628953066,8.07302377,163.57,163.53,6.38450335]
[1730628953450,8.07302377,163.57,163.51,8.07302377]
[1730628953873,8.07302377,163.57,163.52,8.07302377]
[1730628954171,8.07302377,163.59,163.53,8.07302377]
[1730628954673,8.07302377,163.61,163.56,8.07302377]
[1730628955087,23.70642377,163.65,163.6,8.07302377]
[1730628955257,15.6334,163.65,163.6,8.07302377]
[1730628955777,23.70642377,163.65,163.6,8.07302377]
[1730628956554,8.07302377,163.66,163.6,8.07302377]
[1730628956771,8.07302377,163.67,163.62,8.07302377]
[1730628957073,8.07302377,163.67,163.61,8.07302377]
[1730628957268,8.07302377,163.66,163.61,8.07302377]
[1730628957466,8.07302377,163.64,163.59,8.07302377]
[1730628957678,8.07302377,163.66,163.6,8.07302377]
[1730628958561,8.07302377,163.66,163.59,8.07302377]
[1730628958773,8.07302377,163.65,163.59,8.07302377]
[1730628959973,8.07302377,163.64,163.59,8.07302377]
[1730628963175,8.07302377,163.66,163.6,8.07302377]
[1730628965475,8.07302377,163.66,163.61,8.07302377]
[1730628965688,6.4087716,163.68,163.61,8.07302377]
[1730628965689,8.07302377,163.67,163.61,8.07302377]
[1730628968776,8.07302377,163.66,163.61,8.07302377]
[1730628968983,8.07302377,163.66,163.6,8.07302377]
[1730628969486,8.07302377,163.66,163.61,8.07302377]
[1730628971781,8.07302377,163.66,163.56,0.22549]
[1730628971964,8.07302377,163.65,163.6,8.07302377]
[1730628972479,8.07302377,163.65,163.56,0.12549]
[1730628972663,8.07302377,163.65,163.59,8.07302377]
[1730628973071,8.07302377,163.64,163.58,8.07302377]
[1730628973276,8.07302377,163.63,163.58,8.07302377]
[1730628973475,8.07302377,163.64,163.58,8.07302377]
[1730628974871,8.07302377,163.63,163.57,8.07302377]
[1730628975463,12.1351,163.66,163.56,8.07302377]
[1730628975666,8.07302377,163.61,163.55,14.45747981]
[1730628975985,8.07302377,163.6,163.55,6.38445604]
[1730628976287,8.07302377,163.6,163.54,8.07302377]
[1730628976474,8.07302377,163.6,163.55,8.07302377]
[1730628976865,8.07302377,163.62,163.56,8.07302377]
[1730628977081,8.07302377,163.61,163.56,8.07302377]
[1730628978287,6.1111,163.64,163.56,8.07302377]
[1730628978288,8.07302377,163.62,163.56,8.07302377]
[1730628978784,0.2992716,163.68,163.61,52.22637777]
[1730628978975,0.2992716,163.68,163.65,8.07302377]
[1730628979684,0.2992716,163.68,163.61,44.153354]
[1730628979685,0.2992716,163.68,163.64,8.07302377]
[1730628981785,0.2992716,163.68,163.65,8.07302377]
[1730628984887,0.2992716,163.68,163.66,8.07302377]
[1730628985096,0.2992716,163.68,163.67,8.07302377]
[1730628985304,0.2992716,163.68,163.66,8.07302377]
[1730628985581,0.2992716,163.68,163.65,8.07302377]
[1730628985790,0.2992716,163.68,163.66,8.07302377]
[1730628989789,0.2992716,163.68,163.67,8.44949377]
[1730628989985,0.2992716,163.68,163.67,32.22637777]
[1730628990394,0.2992716,163.68,163.67,58.84467777]
[1730628992311,0.2992716,163.68,163.67,91.23677285]
[1730628992793,0.2992716,163.68,163.67,91.13677285]
[1730628992975,0.2992716,163.68,163.67,58.84467777]
[1730628994180,0.2992716,163.76,163.69,0.25098]
[1730628994389,0.2992716,163.76,163.72,8.07302377]
[1730628996497,0.2992716,163.76,163.73,8.07302377]
[1730628997371,0.2992716,163.76,163.73,0.12549]
[1730628997571,0.2992716,163.76,163.73,24.027864]
[1730628997777,0.2992716,163.76,163.73,32.10088777]
[1730628997977,0.2992716,163.76,163.73,23.902374]
[1730628998177,8.37229537,163.76,163.71,43.776884]
[1730628999800,8.37229537,163.76,163.71,51.84990777]
[1730628999987,0.2992716,163.76,163.72,8.07302377]
[1730629000182,0.2992716,163.76,163.73,24.027864]
[1730629000494,0.2992716,163.76,163.73,32.10088777]
[1730629006991,0.2992716,163.76,163.73,24.027864]
[1730629007299,0.2992716,163.76,163.71,28.07302377]
[1730629016100,0.2992716,163.76,163.72,32.10088777]
[1730629020709,8.37229537,163.76,163.71,20.0]
[1730629021008,14.47879537,163.76,163.71,20.0]
[1730629021196,8.37229537,163.76,163.71,20.0]
[1730629021803,8.37229537,163.76,163.71,8.07302377]
[1730629022515,0.2992716,163.76,163.71,8.07302377]
[1730629022883,0.2992716,163.76,163.72,8.07302377]
[1730629024298,0.2992716,163.76,163.69,0.12549]
[1730629024299,0.2992716,163.76,163.73,8.07302377]
[1730629026290,0.2992716,163.76,163.72,8.07302377]
[1730629028315,0.2992716,163.76,163.71,8.07302377]
[1730629028511,0.2992716,163.76,163.72,0.12549]
[1730629028817,0.2992716,163.76,163.72,32.22637777]
[1730629030206,0.2992716,163.76,163.74,8.07302377]
[1730629031912,0.2992716,163.76,163.75,24.153354]
[1730629032098,0.2992716,163.76,163.75,32.22637777]
[1730629032305,0.2992716,163.76,163.75,52.22637777]
[1730629034512,0.2992716,163.76,163.75,44.153354]
[1730629036414,0.2992716,163.76,163.74,20.0]
[1730629037323,0.2992716,163.76,163.73,52.22637777]
[1730629043619,0.2992716,163.76,163.73,44.153354]
[1730629044434,0.2992716,163.76,163.72,20.0]
[1730629044935,0.2992716,163.76,163.73,8.19851377]
[1730629045521,0.2992716,163.76,163.75,24.153354]
[1730629045830,0.2992716,163.76,163.75,52.22637777]
[1730629048714,0.2992716,163.76,163.75,44.153354]
[1730629051005,0.2992716,163.76,163.75,44.027864]
[1730629051207,0.2992716,163.76,163.74,20.0]
[1730629052636,0.2992716,163.76,163.74,28.07302377]
[1730629059127,0.2992716,163.76,163.74,44.153354]
[1730629059834,0.2992716,163.76,163.74,52.22637777]
[1730629060937,0.2992716,163.76,163.74,44.153354]
[1730629066239,0.2992716,163.76,163.74,20.0]
[1730629066446,0.2992716,163.76,163.73,44.027864]
[1730629067743,0.2992716,163.76,163.73,52.10088777]
[1730629069039,0.2992716,163.76,163.75,32.10088777]
[1730629069231,0.2992716,163.76,163.75,32.22637777]
[1730629069545,0.2992716,163.76,163.75,52.22637777]
[1730629076424,8.07302377,163.87,163.76,44.253354]
[1730629076624,8.07302377,163.87,163.81,8.07302377]
[1730629076830,8.07302377,163.86,163.81,43.776884]
[1730629077358,8.07302377,163.86,163.82,0.25098]
[1730629077956,8.07302377,163.86,163.83,5.05371352]
[1730629078146,7.87229537,163.86,163.84,5.05371352]
[1730629078326,7.87229537,163.86,163.85,1.94357547]
[1730629078528,8.07302377,163.86,163.85,1.94357547]
[1730629080826,8.07302377,163.86,163.85,1.9412795]
[1730629081328,8.07302377,163.86,163.83,3.10628369]
[1730629081651,8.07302377,163.85,163.84,1.94126877]
[1730629082844,8.07302377,163.85,163.79,8.07302377]
[1730629083048,8.07302377,163.84,163.8,28.82334428]
[1730629083237,8.07302377,163.84,163.81,5.04646028]
[1730629083430,8.07302377,163.84,163.82,1.94078599]
[1730629083629,8.07302377,163.84,163.8,23.776884]
[1730629083630,8.07302377,163.84,163.83,1.94004599]
[1730629084131,8.07302377,163.84,163.83,1.93967676]
[1730629084624,8.07302377,163.84,163.79,3.10419976]
[1730629084838,8.07302377,163.82,163.8,1.9400375]
[1730629085046,8.07302377,163.82,163.81,1.9400375]
[1730629085849,8.07302377,163.83,163.81,1.9400375]
[1730629086147,8.07302377,163.83,163.8,3.10478911]
[1730629086338,8.07302377,163.83,163.81,1.94005344]
[1730629086536,8.07302377,163.83,163.79,3.10478911]
[1730629086756,8.07302377,163.84,163.8,5.04473093]
[1730629087046,8.07302377,163.85,163.81,5.04473093]
[1730629087243,8.07302377,163.85,163.82,1.93994182]
[1730629087444,8.07302377,163.85,163.8,3.10478911]
[1730629087750,8.07302377,163.84,163.81,5.04424588]
[1730629087925,8.07302377,163.84,163.82,1.93945677]
[1730629088131,8.07302377,163.84,163.81,3.10478911]
[1730629088427,8.07302377,163.84,163.82,1.93938171]
[1730629088627,8.07302377,163.84,163.81,3.10478911]
[1730629088832,8.07302377,163.84,163.82,1.93945996]
[1730629089035,8.07302377,163.85,163.81,3.10478911]
[1730629089240,8.07302377,163.85,163.82,1.93894358]
[1730629089445,8.07302377,163.86,163.83,1.93894358]
[1730629089737,8.07302377,163.86,163.81,23.776884]
[1730629089935,8.07302377,163.86,163.82,5.04005716]
[1730629090126,8.07302377,163.86,163.83,1.93831193]
[1730629090330,8.07302377,163.86,163.82,26.87862923]
[1730629090551,8.07302377,163.86,163.83,1.93745336]
[1730629090829,8.07302377,163.86,163.82,26.87862923]
[1730629091028,8.07302377,163.86,163.82,23.776884]
[1730629091230,8.07302377,163.86,163.83,1.93735967]
[1730629091454,8.07302377,163.87,163.82,34.95009923]
[1730629091637,24.73222377,163.88,163.83,1.93704974]
[1730629091837,24.73222377,163.88,163.84,1.93704974]
[1730629092150,24.73222377,163.88,163.82,31.84990777]
[1730629092359,24.73222377,163.88,163.84,23.776884]
[1730629092652,24.73222377,163.88,163.83,0.25098]
[1730629092857,24.73222377,163.88,163.84,1.93632941]
[1730629093042,24.73222377,163.88,163.83,0.25098]
[1730629093243,8.07302377,163.87,163.84,1.93602887]
[1730629093466,24.73222377,163.88,163.83,0.25098]
[1730629093635,24.73222377,163.88,163.84,1.93598611]
[1730629093837,24.73222377,163.88,163.83,0.25098]
[1730629094033,24.73222377,163.88,163.84,1.9359933]
[1730629094253,24.73222377,163.88,163.83,0.25098]
[1730629094450,24.73222377,163.88,163.84,1.93559954]
[1730629094650,24.73222377,163.88,163.83,0.25098]
[1730629095056,24.73222377,163.88,163.84,1.93549939]
[1730629095364,24.73222377,163.88,163.83,0.25098]
[1730629095739,8.07302377,163.88,163.84,1.93510122]
[1730629096042,8.07302377,163.88,163.84,23.776884]
[1730629097548,8.07302377,163.88,163.83,24.027864]
[1730629098039,8.07302377,163.89,163.83,32.10088777]
[1730629098456,8.07302377,163.88,163.83,32.10088777]
[1730629100363,8.07302377,163.89,163.85,23.776884]
[1730629100546,16.3047,163.92,163.87,8.07302377]
[1730629100736,14.58149537,163.93,163.88,8.32400377]
[1730629100737,0.2992716,163.93,163.88,8.32400377]
[1730629101345,0.2992716,163.93,163.89,8.07302377]
[1730629102659,0.2992716,163.93,163.88,8.32400377]
[1730629102964,0.2992716,163.93,163.89,23.776884]
[1730629103149,0.2992716,163.93,163.89,31.84990777]
[1730629103862,0.2992716,163.93,163.91,8.07302377]
[1730629104950,0.2992716,163.93,163.92,8.07302377]
[1730629105261,0.2992716,163.93,163.91,23.776884]
[1730629106043,0.2992716,163.93,163.91,31.84990777]
[1730629106352,0.2992716,163.93,163.92,52.22637777]
[1730629106565,0.2992716,163.93,163.92,54.15359205]
[1730629109172,0.2992716,163.93,163.92,54.14887075]
[1730629110175,0.2992716,163.93,163.92,52.22637777]
[1730629111772,0.2992716,163.93,163.92,52.32637777]